Cogmind - Beta 13 @@@ ROGUE MODE // 2024.04.29 @ 16:43:56 Player: BrainTooSmol Result: Destroyed by Striker with Plasma Lance Performance ------------- Evolutions (4) 2000 Regions Visited (12) 2400 Robots Destroyed (160) 800 Value Destroyed (5881) 5881 Prototype IDs (15) 300 Alien Tech Used (0) 0 Bonus (4345) 4345 TOTAL SCORE: 15726 Bonus ------- High Alert Combat Kills 986 Follower Combat Kills 1959 Entered Garrisons 400 Used RIF Installer 1000 Cogmind --------- Core Integrity 0/850 Matter 300/300 Energy 350/350 System Corruption 2% Temperature Cool (0) Movement Core (1050) Ox20 Location -6/Garrison Parts ------- > --- POWER (1) -------- Improved Quantum Reactor > --- PROPULSION (4) --- (None) > --- UTILITY (6) ------ High-capacity Storage Unit > --- WEAPON (4) ------- Heavy Laser > --- INVENTORY (20) --- Heavy Ion Engine Compact Matter Pod (150) Improved Armor Integrity Analyzer Advanced Kinecellerator Advanced Weapon Cycler Phase Shifter Light Regenerative Plating Improved Thermal Shield Relay Coupler [NC] (30) Relay Coupler [Swarmer] Relay Coupler [Swarmer] Relay Coupler [Grunt] (28) Relay Coupler [Proto] (9) Relay Coupler [Proto] (9) Hypervelocity Railgun Guided Missile Launcher Peak State ------------ > --- POWER ------------ Improved Quantum Reactor > --- PROPULSION ------- Light Treads Light Treads Light Treads Light Treads > --- UTILITY ---------- High-capacity Storage Unit Experimental Optical Array Experimental Targeting Computer Experimental Core Analyzer Remote Shield Relay Coupler [Proto] > --- WEAPON ----------- Hypervelocity Railgun Helical Railgun Advanced Assault Cannon Remote Datajack > --- INVENTORY -------- Heavy Ion Engine Compact Matter Pod Improved Sensor Array Improved Armor Integrity Analyzer Advanced Kinecellerator Advanced Weapon Cycler Improved Phase Shifter Hardened Medium Armor Plating Improved Medium Armor Plating Medium Reactive Plating Light Regenerative Plating Improved Thermal Shield Improved Thermal Shield Relay Coupler [Proto] Relay Coupler [Proto] Drone Bay Hypervelocity Railgun Advanced Assault Cannon Guided Missile Launcher [Rating: 89] Favorites ----------- Power Heavy Ion Engine Engine Heavy Ion Engine Power Core Hybrid Fission Core Reactor Improved Quantum Reactor Propulsion Light Treads Treads Light Treads Leg Aluminum Leg Wheel Wheel Utility Large Storage Unit Device Shield Generator Storage Large Storage Unit Processor Enhanced Optical Array Hackware Relay Coupler [NC] Protection Light Regenerative Plating Weapon Heavy Assault Cannon Energy Gun Improved Medium Laser Energy Cannon Advanced Beam Cannon Ballistic Gun Hypervelocity Railgun Ballistic Cannon Heavy Assault Cannon Launcher Guided Missile Launcher Special Weapon Remote Datajack Slashing Weapon Katana Build | -11 -10 -10 -9 -9 -8 -7 -7 -7 -6 -6 -6 -6 ------- Run | Yrd Mat Min Mat Sto Mat Fac Was Fac Fac Gar Fac Gar Slots Evolved 8 | . . . 2 . 2 2 . . 2 . . . Power . | . . . . . . . . . . . . . Propulsion 2 | . . . . . 1 1 . . . . . . Utility 4 | . . . 2 . 1 1 . . . . . . Weapon 2 | . . . . . . . . . 2 . . . Parts Attached 179 | 1 3 5 34 30 24 4 2 13 3 40 3 17 Power 12 | . 1 . 2 2 3 . . . . 4 . . Engine 9 | . 1 . 2 2 2 . . . . 2 . . Core 2 | . . . . . 1 . . . . 1 . . Reactor 1 | . . . . . . . . . . 1 . . Propulsion 51 | . 1 2 13 9 7 1 . 4 . 9 1 4 Treads 50 | . . 2 13 9 7 1 . 4 . 9 1 4 Leg . | . . . . . . . . . . . . . Wheel 1 | . 1 . . . . . . . . . . . Hover . | . . . . . . . . . . . . . Flight . | . . . . . . . . . . . . . Utility 73 | 1 1 . 8 8 11 3 2 8 2 18 2 9 Device 32 | 1 . . 4 2 8 3 1 . 1 8 2 2 Storage 2 | . 1 . . . . . . 1 . . . . Processor 4 | . . . . . . . . . 1 3 . . Hackware 7 | . . . . . . . . . . 4 . 3 Protection 28 | . . . 4 6 3 . 1 7 . 3 . 4 Artifact . | . . . . . . . . . . . . . Weapon 43 | . . 3 11 11 3 . . 1 1 9 . 4 Energy Gun 8 | . . . 4 2 . . . . . . . 2 Energy Cannon 10 | . . 1 4 5 . . . . . . . . Ballistic Gun 7 | . . 1 1 . . . . . . 4 . 1 Ballistic Cannon 10 | . . 1 1 . 3 . . 1 1 3 . . Launcher 3 | . . . . 1 . . . . . 1 . 1 Special Weapon 2 | . . . 1 . . . . . . 1 . . Impact Weapon . | . . . . . . . . . . . . . Slashing Weapon 3 | . . . . 3 . . . . . . . . Piercing Weapon . | . . . . . . . . . . . . . Special Melee Weapon . | . . . . . . . . . . . . . Unidentified Prototypes 12 | . . . . 4 1 . . . . 6 1 . Parts Lost 40 | . . 3 7 4 2 . 1 2 . 7 . 14 Power 2 | . . . 1 . . . . . . 1 . . Propulsion 13 | . . 2 . 1 1 . 1 . . 3 . 5 Utility 15 | . . . 3 2 1 . . 2 . 2 . 5 Weapon 10 | . . 1 3 1 . . . . . 1 . 4 Highest Loss Streak 14 | . . 3 2 2 1 . 1 1 . 3 . 14 To Critical Strikes . | . . . . . . . . . . . . . Average Slot Usage (%) 93 | . 100 99 94 97 95 92 86 89 86 85 88 61 Engine 8 | . 14 14 9 10 8 7 7 7 6 3 . . Treads 24 | . . 26 21 22 25 30 25 29 26 25 26 19 Device 17 | . 14 14 21 13 24 23 23 21 13 6 7 5 Storage 9 | . 14 14 11 11 9 7 7 7 6 6 6 6 Processor 1 | . . . . . . . . . 1 8 9 . Protection 11 | . . . 7 18 11 15 14 15 17 9 . 4 Energy Gun 2 | . 14 8 5 6 . . . . . . . 3 Energy Cannon 5 | . . 5 11 12 1 . . . . . . . Ballistic Gun 1 | . 14 8 . . . . . . . 6 12 8 Ballistic Cannon 6 | . . 5 4 . 13 7 7 6 13 9 . . Naked Turns . | . . . . . . . . . . . . . Heaviest Build 98 | 13 28 30 40 43 67 68 68 81 88 98 82 85 Greatest Support 90 | 20 20 40 43 43 60 80 80 88 88 90 80 80 Greatest Overweight (x) 20 | . 2 . . 1 1 . 1 . . 4 1 20 Average Overweight (x) . | . . . . . . . . . . . . 1 Largest Inventory Capacity 20 | 8 15 15 15 15 15 15 15 20 20 20 20 20 Average Capacity 16 | 8 8 15 15 15 15 15 15 18 20 20 20 20 Most Carried 20 | 7 9 11 15 15 15 14 15 20 20 20 20 20 Average Carried 15 | 6 6 8 14 14 14 13 14 17 17 19 20 18 Final Capacity 20 | 8 15 15 15 15 15 15 15 20 20 20 20 20 Final Carried 20 | 6 9 11 15 15 15 14 15 19 17 20 20 17 Class Distribution -------------------- 33% | Scavenger-Mutant 31% | Mutant 15% | Commander-Mutant 7% | Tank 5% | Scavenger-Tank Dominant Class ---------------- Mutant | -10/Materials Mutant | -10/Mines Scavenger-Mutant | -9/Materials Commander-Mutant | -9/Storage Scavenger-Mutant | -8/Materials Scavenger-Mutant | -7/Factory Mutant | -7/Waste Mutant | -7/Factory Tank | -6/Factory Tank | -6/Garrison Bothacker-Gunner | -6/Factory Scavenger-Tank | -6/Garrison Resources | -11 -10 -10 -9 -9 -8 -7 -7 -7 -6 -6 -6 -6 ----------- Run | Yrd Mat Min Mat Sto Mat Fac Was Fac Fac Gar Fac Gar Matter Collected 4996 | 205 87 134 440 411 970 143 . 599 . 1593 76 338 Remotely . | . . . . . . . . . . . . . Salvage Created 5081 | 41 181 91 1012 813 1066 83 . 425 . 957 . 412 Parts 299 | 7 12 3 88 45 56 4 . 33 . 37 . 14 Haulers Intercepted 6 | . . . 1 2 2 . . 1 . . . . Recyclers Shooed 3 | . . 1 . . 2 . . . . . . . Parts Field Recycled . | . . . . . . . . . . . . . Retrieved Matter . | . . . . . . . . . . . . . Parts Self-Destructed . | . . . . . . . . . . . . . Prevented . | . . . . . . . . . . . . . Kills | -11 -10 -10 -9 -9 -8 -7 -7 -7 -6 -6 -6 -6 ------- Run | Yrd Mat Min Mat Sto Mat Fac Was Fac Fac Gar Fac Gar Combat Hostiles Destroyed 135 | . 5 2 29 18 28 3 . 18 . 22 . 10 Melee 9 | . . . . 3 . . . 5 . 1 . . Guns 39 | . 5 2 5 14 . . . . . 7 . 6 Cannons 77 | . . . 24 . 28 3 . 12 . 10 . . AOE 8 | . . . . . . . . . . 4 . 4 Classes Destroyed 14 | 1 3 . 2 2 3 . . 2 . . . 1 Worker 3 | . . . . . . . . 3 . . . . Tunneler 2 | 2 . . . . . . . . . . . . Hauler 6 | . . . 1 2 2 . . 1 . . . . Recycler 1 | . . . . . 1 . . . . . . . Operator 1 | . . . . . 1 . . . . . . . Watcher 12 | . 2 . 4 2 4 . . . . . . . Swarmer 50 | . 3 . 14 4 10 1 . 9 . 6 . 3 Grunt 47 | . 2 2 6 7 12 . . 6 . 9 . 3 Brawler 2 | . . . . . 1 . . . . 1 . . Duelist 5 | . . . . 1 . 2 . . . 1 . 1 Protector 1 | . . . . 1 . . . . . . . . Sentry 25 | . . . 9 5 5 . . 1 . 4 . 1 Hunter 2 | . . . . . . . . . . . . 2 Programmer 3 | . . . . . . . . 2 . 1 . . Best Kill Streak 5 | 1 5 1 4 3 4 2 . 4 . 5 . 4 Combat Bots Only 5 | . 4 1 4 3 4 2 . 4 . 5 . 4 Max Kills in Single Turn 4 | 1 1 1 1 1 2 1 . 1 . 2 . 4 Gunslinging . | . . . . . . . . . . . . . Exploded 4 | . . . . . . . . . . 2 . 4 Melee 1 | . . . . 1 . . . 1 . 1 . . Uniques/NPCs Destroyed . | . . . . . . . . . . . . . Combat | -11 -10 -10 -9 -9 -8 -7 -7 -7 -6 -6 -6 -6 -------- Run | Yrd Mat Min Mat Sto Mat Fac Was Fac Fac Gar Fac Gar Hostile Shots Fired 980 | . 26 26 122 116 147 5 1 169 . 147 22 199 Missed 256 | . 6 4 31 25 44 2 . 53 . 28 9 54 Damage Taken 10844 | . 225 318 1075 1266 1156 37 22 1402 . 2093 136 3114 Core 1548 | . 38 31 93 258 94 . . 104 . 118 . 812 Absorbed by Shields 816 | . . . 4 . 321 15 8 257 . 108 41 62 Redirected to Shielding 1 | . . . 1 . . . . . . . . . Ignored by Resistances 5 | . . . . . . 5 . . . . . . Regen/Repaired (Parts) 1510 | . . . 166 227 315 . . 623 27 152 . . Core Remaining (%) 70 | 100 . 72 . 12 82 . . 85 . . . . Volleys Fired 475 | 2 22 15 76 67 111 14 18 42 . 72 8 28 Largest 4 | 2 2 2 2 2 2 1 1 1 . 3 2 4 Hottest 215 | 70 70 70 128 112 112 60 60 60 . 140 78 215 Shots Fired 833 | 4 44 30 149 126 207 14 19 44 . 135 9 52 Gun 312 | 4 44 30 20 124 . . . . . 47 2 41 Cannon 492 | . . . 127 2 207 14 19 44 . 79 . . Launcher 6 | . . . . . . . . . . 5 . 1 Special 23 | . . . 2 . . . . . . 4 7 10 Kinetic 453 | 2 22 15 32 . 149 14 19 44 . 126 2 28 Thermal 353 | 2 22 15 117 126 58 . . . . . . 13 Explosive 6 | . . . . . . . . . . 5 . 1 Electromagnetic . | . . . . . . . . . . . . . Robot Hit Streak 31 | 2 14 9 14 21 10 9 . 7 . 11 18 31 Robot Miss Streak 7 | . 2 3 6 7 4 2 1 2 . 4 . 3 Penetration Max 1 | . . . . . . . . . . 1 . . Secondary Targets 7 | . . . . 2 . . . . . 1 . 4 Max Gunslinging Chain 1 | . . . . 1 . . . . . 1 . 1 Shots Hit Robots 518 | 2 31 19 90 98 113 7 . 27 . 76 9 46 Core Hits 230 | 2 10 5 43 31 50 3 . 17 . 36 1 32 Critical Kills 7 | . . . . . 1 . . . . 5 . 1 Critical Parts Destroyed 5 | . . . . . . . . . . 5 . . Critical Strikes 36 | . 3 . 1 6 8 . . 4 . 13 . 1 Burn 8 | . 3 . 1 4 . . . . . . . . Meltdown 1 | . . . . . 1 . . . . . . . Destroy 11 | . . . . . . . . . . 10 . 1 Blast 14 | . . . . . 7 . . 4 . 3 . . Sever 2 | . . . . 2 . . . . . . . . Melee Attacks 24 | . . . . 24 . . . . . . . . Impact . | . . . . . . . . . . . . . Slashing 24 | . . . . 24 . . . . . . . . Piercing . | . . . . . . . . . . . . . Sneak Attacks 4 | . . . . 4 . . . . . . . . Combat Hostiles . | . . . . . . . . . . . . . Follow-up Attacks . | . . . . . . . . . . . . . Damage Inflicted 12989 | 24 383 242 1753 1978 2951 393 53 1707 . 2432 34 1039 Guns 3292 | 24 383 242 196 1392 . . . . . 294 34 727 Cannons 8298 | . . . 1553 21 2947 393 53 1536 . 1795 . . Explosions 637 | . . . . . . . . . . 338 . 299 Melee 565 | . . . . 565 . . . . . . . . Ramming 197 | . . . 4 . 4 . . 171 . 5 . 13 Kinetic 7349 | . 147 143 375 . 2069 393 53 1536 . 2089 34 510 Thermal 4241 | 24 236 99 1374 1413 878 . . . . . . 217 Explosive 637 | . . . . . . . . . . 338 . 299 Electromagnetic . | . . . . . . . . . . . . . Impact . | . . . . . . . . . . . . . Slashing 565 | . . . . 565 . . . . . . . . Piercing . | . . . . . . . . . . . . . Highest Corruption 23 | . . . 1 2 1 . 20 23 . 1 1 2 Average Corruption 4 | . . . 1 1 1 . 10 22 . 1 1 1 Corruption Purged . | . . . . . . . . . . . . . Corruption Blocked . | . . . . . . . . . . . . . Effects 175 | . . . 6 55 11 . 8 83 . 4 2 6 Message Errors 52 | . . . 1 20 3 . 1 24 . 1 . 2 Matter Fused 37 | . . . 1 14 4 . 2 14 . 1 . 1 Heat Flow Errors 18 | . . . 2 4 1 . 2 8 . . 1 . Energy Discharges 21 | . . . . 6 3 . 1 10 . . . 1 Parts Rejected 2 | . . . . . . . 1 1 . . . . Data Loss (minor) 16 | . . . 1 2 . . . 12 . 1 . . Data Loss (major) 8 | . . . 1 2 . . . 3 . 1 1 . Misfires 12 | . . . . 5 . . 1 5 . . . 1 Alerts 2 | . . . . 1 . . . 1 . . . . Misdirections 2 | . . . . . . . . 2 . . . . Weapon Failures 5 | . . . . 1 . . . 3 . . . 1 Overload Shots . | . . . . . . . . . . . . . Overflow Damage 405 | . . . 18 5 178 9 . 118 . 77 . . Projectiles 340 | . . . 18 . 178 9 . 114 . 21 . . Explosions 56 | . . . . . . . . . . 56 . . Melee 9 | . . . . 5 . . . 4 . . . . Knockbacks 49 | . . . 2 . 27 2 . 7 . 11 . . Impact . | . . . . . . . . . . . . . Kinetic 44 | . . . 2 . 22 2 . 7 . 11 . . Secondary 5 | . . . . . 5 . . . . . . . Self-Inflicted Damage . | . . . . . . . . . . . . . Shots . | . . . . . . . . . . . . . Rammed 35 | . . . 1 . 1 . . 29 . 1 . 3 Targets Rammed 40 | . . . 1 . 1 . . 34 . 1 . 3 Kicked . | . . . . . . . . . . . . . Crushed 5 | . . . . . . . . 5 . . . . Highest Temperature 636 | 9 108 316 327 295 355 60 269 269 . 636 129 318 Average Temperature 100 | 6 41 177 69 87 139 28 74 67 . 183 80 168 Received Heat Transfer 3157 | . 72 201 354 390 563 6 . 199 . 1028 54 290 Effects 32 | . . 1 . 1 4 . . 1 . 25 . . Shutdowns 1 | . . . . . . . . . . 1 . . Energy Bleed 6 | . . 1 . . 2 . . 1 . 2 . . Interference 6 | . . . . 1 2 . . . . 3 . . Matter Decay 4 | . . . . . . . . . . 4 . . Short Circuit 3 | . . . . . . . . . . 3 . . Damage (minor) 4 | . . . . . . . . . . 4 . . Damage (major) 8 | . . . . . . . . . . 8 . . Siege Activations . | . . . . . . . . . . . . . Robots Corrupted . | . . . . . . . . . . . . . Combat Hostiles . | . . . . . . . . . . . . . Parts Fried . | . . . . . . . . . . . . . Impact Corruptions 2 | . . . . . . . . 2 . . . . Robots Melted 2 | . . . . 1 1 . . . . . . . Combat Hostiles 1 | . . . . 1 . . . . . . . . Parts Melted 18 | . . . 2 9 3 . . . . 1 . 3 Heat Transferred 9503 | 74 925 296 2812 3318 1591 . . . . . . 487 Parts Sabotaged . | . . . . . . . . . . . . . Parts Stolen . | . . . . . . . . . . . . . Parts Stripped . | . . . . . . . . . . . . . Power Chain Reactions . | . . . . . . . . . . . . . Alert | -11 -10 -10 -9 -9 -8 -7 -7 -7 -6 -6 -6 -6 ------- Run | Yrd Mat Min Mat Sto Mat Fac Was Fac Fac Gar Fac Gar Peak Influence 2330 | 10 163 83 429 531 272 157 34 186 79 2278 2330 1797 Initial 1491 | . 6 63 . 160 5 114 7 23 79 55 1195 1491 Average 323 | 5 88 33 182 134 179 78 20 58 79 1019 1652 1685 Maximum Alert Level 5 | . . . 2 2 1 . . . . 5 5 5 Low Security (%) 62 | 100 100 100 65 72 61 100 100 100 100 7 . . Level 1 17 | . . . 34 13 38 . . . . 2 . . Level 2 7 | . . . . 13 . . . . . 30 . . Level 3 2 | . . . . . . . . . . 14 . . Level 4 5 | . . . . . . . . . . 25 57 18 Level 5 5 | . . . . . . . . . . 20 42 81 High Security . | . . . . . . . . . . . . . Max Security . | . . . . . . . . . . . . . Squads Dispatched 22 | . 1 . 2 3 2 . . 5 . . 9 . Investigation 6 | . 1 . 1 . 1 . . 2 . . 1 . Extermination 2 | . . . . . . . . 2 . . . . Reinforcement 7 | . . . 1 . 1 . . 1 . . 4 . Assault 5 | . . . . 3 . . . . . . 2 . Garrison 2 | . . . . . . . . . . . 2 . Intercept . | . . . . . . . . . . . . . Searches Triggered . | . . . . . . . . . . . . . Construction Impeded 1 | . . . . . . . . . . . 1 . Haulers Reinforced 2 | . . . . . . . . . . . 2 . Active Scanning Responses 1 | . . . . . . . . . . . . 1 Cargo Convoy Interrupts . | . . . . . . . . . . . . . Stealth | -11 -10 -10 -9 -9 -8 -7 -7 -7 -6 -6 -6 -6 --------- Run | Yrd Mat Min Mat Sto Mat Fac Was Fac Fac Gar Fac Gar Distress Signals 11 | . 1 . 1 3 3 . . . . . 3 . Communications Jammed 2 | . . . . . . . . . . . 2 . Distress Signals 2 | . . . . . . . . . . . 2 . Times Spotted 257 | . 8 2 37 49 47 3 8 24 . 44 9 26 Peak Tracking Total 10 | . 5 2 4 10 7 3 5 4 . 8 9 8 Tactical Retreats 18 | . . . 2 3 2 . 2 2 . 7 . . Traps | -11 -10 -10 -9 -9 -8 -7 -7 -7 -6 -6 -6 -6 ------- Run | Yrd Mat Min Mat Sto Mat Fac Was Fac Fac Gar Fac Gar Traps Triggered 21 | . . . 2 3 1 2 . 3 1 8 . 1 Indirectly . | . . . . . . . . . . . . . Trap Hack Attempts . | . . . . . . . . . . . . . Triggered . | . . . . . . . . . . . . . Disarmed . | . . . . . . . . . . . . . Reprogrammed 2 | . . . 2 . . . . . . . . . Reused . | . . . . . . . . . . . . . Traps Extracted . | . . . . . . . . . . . . . Installed . | . . . . . . . . . . . . . Triggered . | . . . . . . . . . . . . . Machines | -11 -10 -10 -9 -9 -8 -7 -7 -7 -6 -6 -6 -6 ---------- Run | Yrd Mat Min Mat Sto Mat Fac Was Fac Fac Gar Fac Gar Machines Disabled 28 | . . . 2 5 3 . . 4 . 6 8 . Max in Single Turn 1 | . . . 1 1 1 . . 1 . 1 . . Garrison Access 1 | . . . . . . 1 . . . . . . Garrison Relay 3 | . . . . . . . . . . 3 . . Machines Repaired . | . . . . . . . . . . . . . Machines Dismantled . | . . . . . . . . . . . . . Machines Sabotaged . | . . . . . . . . . . . . . Overloaded Fab Kills . | . . . . . . . . . . . . . Hacking | -11 -10 -10 -9 -9 -8 -7 -7 -7 -6 -6 -6 -6 --------- Run | Yrd Mat Min Mat Sto Mat Fac Was Fac Fac Gar Fac Gar Machines Accessed 56 | . 4 . 16 17 9 1 . 4 1 2 2 . Terminals 35 | . 2 . 11 13 7 . . . . 2 . . Fabricators 1 | . . . . . . . . 1 . . . . Repair Stations 7 | . . . 2 2 1 . . 2 . . . . Recycling Units 8 | . 2 . 1 2 1 . . 1 . . 1 . Scanalyzers 2 | . . . 2 . . . . . . . . . Garrison Access 3 | . . . . . . 1 . . 1 . 1 . Total Hacks 146 | . 14 . 47 34 30 1 . 14 1 2 3 . Successful 83 | . 5 . 26 19 19 1 . 8 1 2 2 . Failed 63 | . 9 . 21 15 11 . . 6 . . 1 . Catastrophic 9 | . 2 . 2 1 3 . . . . . 1 . Database Lockouts . | . . . . . . . . . . . . . Manual 58 | . 7 . 20 19 12 . . . . . . . Terminals 79 | . 5 . 29 24 19 . . . . 2 . . Fabricators 1 | . . . . . . . . 1 . . . . Repair Stations 31 | . . . 9 5 6 . . 11 . . . . Recycling Units 26 | . 9 . 3 5 5 . . 2 . . 2 . Scanalyzers 6 | . . . 6 . . . . . . . . . Garrison Access 3 | . . . . . . 1 . . 1 . 1 . Terminal Hacks 22 | . 1 . 4 10 5 . . . . 2 . . Part Schematic 2 | . . . . 1 1 . . . . . . . Robot Analysis 1 | . . . 1 . . . . . . . . . Open Door 6 | . . . . 6 . . . . . . . . Branch Access Points 2 | . . . 1 . 1 . . . . . . . Emergency Access Points 1 | . . . . . . . . . . 1 . . Recycling Unit Index 1 | . . . . . 1 . . . . . . . Scanalyzer Index 1 | . 1 . . . . . . . . . . . Alert Level 2 | . . . . 1 1 . . . . . . . Unreport Threat 2 | . . . . 2 . . . . . . . . Locate Traps 1 | . . . 1 . . . . . . . . . Reprogram Traps 1 | . . . 1 . . . . . . . . . Dispatch Records 1 | . . . . . 1 . . . . . . . Garrison Registry 1 | . . . . . . . . . . 1 . . Fabricator Hacks 1 | . . . . . . . . 1 . . . . Network Status 1 | . . . . . . . . 1 . . . . Repair Station Hacks 25 | . . . 8 4 6 . . 7 . . . . Scan Component 13 | . . . 4 2 3 . . 4 . . . . Repair 12 | . . . 4 2 3 . . 3 . . . . Recycling Unit Hacks 6 | . 1 . 1 . 3 . . . . . 1 . Report Inventory 3 | . 1 . 1 . 1 . . . . . . . Retrieve Matter 1 | . . . . . 1 . . . . . . . Retrieve Components 2 | . . . . . 1 . . . . . 1 . Scanalyzer 6 | . . . 6 . . . . . . . . . Insert Component 3 | . . . 3 . . . . . . . . . Analyze 3 | . . . 3 . . . . . . . . . Garrison Access Hacks 3 | . . . . . . 1 . . 1 . 1 . Unlock Access 2 | . . . . . . . . . 1 . 1 . Seal Access 1 | . . . . . . 1 . . . . . . Unauthorized Hacks 20 | . 3 . 7 5 5 . . . . . . . Terminals 11 | . . . 5 3 3 . . . . . . . Assimilate 2 | . . . 1 . 1 . . . . . . . Botnet 8 | . . . 3 3 2 . . . . . . . Operators 1 | . . . 1 . . . . . . . . . Fabricators . | . . . . . . . . . . . . . Repair Stations . | . . . . . . . . . . . . . Recycling Units 9 | . 3 . 2 2 2 . . . . . . . Reject 5 | . 2 . 1 1 1 . . . . . . . Mask 4 | . 1 . 1 1 1 . . . . . . . Scanalyzers . | . . . . . . . . . . . . . Garrison Access . | . . . . . . . . . . . . . Data Cores Recovered . | . . . . . . . . . . . . . Used . | . . . . . . . . . . . . . Hacking Detections 41 | . 4 . 14 11 7 . . 3 . 1 1 . Full Trace Events 9 | . 3 . 1 2 1 . . 1 . . 1 . Feedback Events 1 | . . . . . 1 . . . . . . . Corruption 1 | . . . . . 1 . . . . . . . Feedback Blocked . | . . . . . . . . . . . . . Robot Schematics Acquired . | . . . . . . . . . . . . . Robots Built . | . . . . . . . . . . . . . Authchips . | . . . . . . . . . . . . . Time . | . . . . . . . . . . . . . Total Robot Build Rating . | . . . . . . . . . . . . . Part Schematics Acquired 4 | . . . 2 1 1 . . . . . . . Parts Built . | . . . . . . . . . . . . . Authchips . | . . . . . . . . . . . . . Time . | . . . . . . . . . . . . . Total Part Build Rating . | . . . . . . . . . . . . . Parts Repaired 12 | . . . 4 2 3 . . 3 . . . . Time 388 | . . . 134 64 78 . . 112 . . . . Parts Recycled . | . . . . . . . . . . . . . Recycled Matter . | . . . . . . . . . . . . . Retrieved Matter . | . . . . . . . . . . . . . Retrieved Components 15 | . . . . . 10 . . . . . 5 . Parts Scanalyzed 2 | . . . 2 . . . . . . . . . Part Schematics Acquired 2 | . . . 2 . . . . . . . . . Parts Damaged 1 | . . . 1 . . . . . . . . . Bothacking | -11 -10 -10 -9 -9 -8 -7 -7 -7 -6 -6 -6 -6 ------------ Run | Yrd Mat Min Mat Sto Mat Fac Was Fac Fac Gar Fac Gar Used RIF Installer 2 | . . . . . . . . . . 2 . . Signal Jammer 1 | . . . . . . . . . . 1 . . Robots Hacked 10 | . . . . . . . . . . 1 2 7 Non-combat 2 | . . . . . . . . . . . 2 . Combat 8 | . . . . . . . . . . 1 . 7 Robot Hacks Applied 11 | . . . . . . . . . . 1 2 8 parse_system 2 | . . . . . . . . . . . 1 1 find_recycling 1 | . . . . . . . . . . . 1 . disrupt_area 1 | . . . . . . . . . . . . 1 overwrite_iff 1 | . . . . . . . . . . . . 1 formatsys_high 6 | . . . . . . . . . . 1 . 5 Relay Couplers Released 12 | . . . . . . . . . . 12 . . Machine Destruction 12 | . . . . . . . . . . 12 . . Attached 7 | . . . . . . . . . . 4 . 3 Fabnet Peak Effective % . | . . . . . . . . . . . . . Robots Rewired 2 | . . . . . . . . . . 2 . . Allies Hacked . | . . . . . . . . . . . . . Hacks Repelled . | . . . . . . . . . . . . . Allies | -11 -10 -10 -9 -9 -8 -7 -7 -7 -6 -6 -6 -6 -------- Run | Yrd Mat Min Mat Sto Mat Fac Was Fac Fac Gar Fac Gar Total Allies 32 | . . 4 1 12 1 . . . 3 5 . 6 Largest Group 11 | . . 4 3 11 7 2 . . 3 5 3 4 Highest-Rated Group 357 | . . 71 40 97 64 20 . . 93 357 357 302 Highest-Rated Ally 119 | . . 31 16 31 16 10 . . 31 119 119 119 Total Orders 29 | . . . 4 10 12 3 . . . . . . STAY 15 | . . . 2 5 6 2 . . . . . . FOLLOW 14 | . . . 2 5 6 1 . . . . . . Ally Attacks 252 | . . . 8 43 14 . . . . 74 68 45 Total Damage 9090 | . . . 69 530 118 . . . . 2535 4228 1610 Kills 66 | . . . 2 7 1 . . . . 16 32 8 Allies Corrupted 1 | . . . . 1 . . . . . . . . Allies Melted . | . . . . . . . . . . . . . Intel | -11 -10 -10 -9 -9 -8 -7 -7 -7 -6 -6 -6 -6 ------- Run | Yrd Mat Min Mat Sto Mat Fac Was Fac Fac Gar Fac Gar Robot Analysis Total 1 | . . . 1 . . . . . . . . . Derelict Logs Recovered 1 | . . 1 . . . . . . . . . . Drone Launches . | . . . . . . . . . . . . . Drone Recoveries . | . . . . . . . . . . . . . Exploration | -11 -10 -10 -9 -9 -8 -7 -7 -7 -6 -6 -6 -6 ------------- Run | Yrd Mat Min Mat Sto Mat Fac Was Fac Fac Gar Fac Gar Turns Passed 19834 | 62 267 977 3241 4257 4476 658 240 1821 130 3010 402 293 Spaces Moved 8812 | 13 117 517 1439 1724 1924 346 95 911 77 1348 221 80 Core 2 | . . . . . . . . . . . . 2 Treads 8680 | . . 517 1439 1724 1924 346 95 911 77 1348 221 78 Legs 121 | 13 108 . . . . . . . . . . . Wheels 9 | . 9 . . . . . . . . . . . Hover . | . . . . . . . . . . . . . Flight . | . . . . . . . . . . . . . Fastest Speed 110 | 120 110 160 160 160 160 160 160 160 160 156 160 162 Average Speed 176 | 120 119 160 160 203 175 160 192 160 160 188 168 224 Slowest Speed 1050 | 120 120 160 160 240 240 160 240 160 160 480 242 1050 Overloaded Moves . | . . . . . . . . . . . . . Propulsion Burnouts . | . . . . . . . . . . . . . Robots Hopped . | . . . . . . . . . . . . . Cave-ins Triggered . | . . . . . . . . . . . . . Exploration Rate (%) 47 | 2 30 98 94 94 73 7 82 25 4 82 12 13 Regions Visited 12 Branch Regions 2 Pre-discovered Areas . | . . . . . . . . . . . . . Known Exits Taken 3 | . . . 1 . . . . . 1 . 1 . Unknown Exits Taken 6 | 1 1 1 . 1 1 . . 1 . . . . Scrap Searched 2 | . . 2 . . . . . . . . . . Spaces Dug 42 | . . . 2 3 10 6 21 . . . . . Terrain Destroyed 159 | . . . 2 3 32 8 21 17 . 65 1 10 Melee 3 | . . . . 3 . . . . . . . . Projectile 91 | . . . 2 . 32 8 21 17 . 9 1 1 AOE 65 | . . . . . . . . . . 56 . 9 Terrain Rammed . | . . . . . . . . . . . . . Walls Destroyed . | . . . . . . . . . . . . . Machines Disabled . | . . . . . . . . . . . . . Actions | -11 -10 -10 -9 -9 -8 -7 -7 -7 -6 -6 -6 -6 --------- Run | Yrd Mat Min Mat Sto Mat Fac Was Fac Fac Gar Fac Gar Total 12154 | 55 200 637 2222 2324 2812 431 125 1189 84 1675 247 153 Wait 2392 | 38 54 92 646 435 708 62 8 179 2 140 9 19 Move 8803 | 12 116 516 1438 1723 1923 346 94 910 77 1347 221 80 Hop . | . . . . . . . . . . . . . Pick Up 79 | 1 3 6 8 17 15 2 1 7 . 19 . . Fast Attach 78 | 1 . 2 14 8 12 2 2 6 1 23 1 6 Attach 35 | . . 3 2 6 3 2 . 4 2 8 . 5 Detach 22 | . . . 2 2 3 . 1 2 1 9 . 2 Swap 66 | . 3 . 18 16 9 . . 3 . 9 2 6 Drop 128 | 1 2 3 17 26 27 3 1 2 1 35 6 4 Fire 475 | 2 22 15 76 67 111 14 18 42 . 72 8 28 Melee 24 | . . . . 24 . . . . . . . . Ram . | . . . . . . . . . . . . . Kick . | . . . . . . . . . . . . . Crush 40 | . . . 1 . 1 . . 34 . 1 . 3 Escape Stasis 10 | . . . . . . . . . . 10 . . Rewire 2 | . . . . . . . . . . 2 . . Trap . | . . . . . . . . . . . . . Miscellaneous . | . . . . . . . . . . . . . Route ------- -11/Scrapyard -10/Materials -10/Mines (discovered 2 exits: *Mat x2) -9/Materials (discovered 6 exits: *Mat x3 / *Min / *Sto x2) -9/Storage -8/Materials (discovered 2 exits: *Fac x2) -7/Factory -7/Waste -7/Factory (discovered 2 exits: *Fac x2) -6/Factory -6/Garrison (discovered 3 exits: *Fac x3) -6/Factory (discovered 2 exits: [*Low] / Gar) -6/Garrison History --------- Turn | Location | Event 1 | -11/Scrapyard | Discovered new exit (range 3) 63 | -11/Scrapyard | Entered Materials 307 | -10/Materials | Discovered new exit (range 7) 313 | -10/Materials | Build established: Mutant 330 | -10/Materials | Entered Mines 397 | -10/Mines | Lost 3 parts (2n1w) 434 | -10/Mines | Discovered new exit (range 8) 642 | -10/Mines | Assisted by bots powering up and referring to "LRC-V3" 720 | -10/Mines | Discovered new exit (range 6) 966 | -10/Mines | Learned Materials security intel 1034 | -10/Mines | Received a Mining Laser from a helpful Derelict 1307 | -10/Mines | Entered Materials 1307 | -9/Materials | Accompanied by 3 allies 1307 | -9/Materials | Evolved 2 slots: Utility x2 1633 | -9/Materials | Discovered new exit (range 16) 1668 | -9/Materials | Lost 3 allies 1694 | -9/Materials | Discovered new exit (range 13) 2399 | -9/Materials | Discovered new exit (range 13) 2562 | -9/Materials | Repaired Broken Imp. Treads 2590 | -9/Materials | Repaired Beam Cannon 2842 | -9/Materials | Discovered new exit (range 16) 3217 | -9/Materials | Discovered new exit (range 16) 3680 | -9/Materials | Build established: Scavenger-Mutant 3782 | -9/Materials | Repaired Imp. Ion Engine 3815 | -9/Materials | Repaired Imp. Treads 3912 | -9/Materials | Discovered new exit (range 5) 4530 | -9/Materials | Identified exit to Mines 4530 | -9/Materials | Identified exit to Storage 4548 | -9/Materials | Entered Storage 4548 | -9/Storage | Accompanied by 1 ally 4663 | -9/Storage | Met a pair of Derelict thieves 4973 | -9/Storage | Core integrity fell below 50% 5623 | -9/Storage | Discovered new exit (range 15) 5748 | -9/Storage | First assault squad dispatched 5828 | -9/Storage | Core integrity fell below 20% 5849 | -9/Storage | Assisted by bots powering up and referring to "LRC-V3" 5897 | -9/Storage | Lost 4 allies 6141 | -9/Storage | Build established: Commander-Mutant 6297 | -9/Storage | Repaired Hrd. Light Armor Plating 7528 | -9/Storage | Repaired Rocket Launcher 7672 | -9/Storage | Found Prototype Launcher 7672 | -9/Storage | Identified Gui. Missile Launcher 7834 | -9/Storage | Found Prototype Protection 7834 | -9/Storage | Identified Lgt. Regenerative Plating 8805 | -9/Storage | Entered Materials 8805 | -8/Materials | Accompanied by 7 allies 8805 | -8/Materials | Evolved 2 slots: Propulsion x1, Utility x1 8993 | -8/Materials | Lost 6 allies 9487 | -8/Materials | Build established: Mutant 9908 | -8/Materials | Build established: Scavenger-Mutant 9933 | -8/Materials | Discovered new exit (range 16) 10603 | -8/Materials | Discovered new exit (range 4) 12812 | -8/Materials | Build established: Mutant 13095 | -8/Materials | Repaired Lgt. Treads 13123 | -8/Materials | Repaired Lgt. Treads 13150 | -8/Materials | Repaired Lgt. Treads 13281 | -8/Materials | Entered Factory 13281 | -7/Factory | Accompanied by 2 allies 13281 | -7/Factory | Evolved 2 slots: Propulsion x1, Utility x1 13588 | -7/Factory | Build established: Scavenger-Mutant 13934 | -7/Factory | Discovered new exit (range 14) 13939 | -7/Factory | Sucked down chute 13939 | -7/Factory | Entered Waste 13954 | -7/Waste | EMP discharged 13955 | -7/Waste | Spotted C-40 Crusher 13992 | -7/Waste | Spotted C-40 Crusher 13997 | -7/Waste | Spotted C-40 Crusher 14000 | -7/Waste | Spotted C-40 Crusher 14004 | -7/Waste | Spotted C-40 Crusher 14030 | -7/Waste | Crushed by Compactor (1 part destroyed, 1 dropped) 14054 | -7/Waste | EMP discharged 14054 | -7/Waste | System corruption reached 10% 14154 | -7/Waste | EMP discharged 14155 | -7/Waste | Discovered new exit (range 16) 14179 | -7/Waste | Entered Factory 14194 | -7/Factory | Discovered new exit (range 8) 14328 | -7/Factory | Build established: Mutant 14914 | -7/Factory | Repaired Hvy. Assault Cannon 15891 | -7/Factory | Repaired Broken Lgt. Treads 15930 | -7/Factory | Repaired Hrd. Medium Armor Plating 15965 | -7/Factory | Discovered new exit (range 16) 16000 | -7/Factory | Entered another Factory area 16000 | -6/Factory | Evolved 2 slots: Weapon x2 16119 | -6/Factory | Allied Derelicts emerged from ambush trap array 16129 | -6/Factory | Identified exit to Garrison 16130 | -6/Factory | Entered Garrison 16130 | -6/Garrison | Accompanied by 3 allies 16197 | -6/Garrison | Found embedded Infiltrators 16308 | -6/Garrison | Build established: Tank 16332 | -6/Garrison | Triggered checkpoint 16358 | -6/Garrison | Triggered checkpoint 16552 | -6/Garrison | Discovered new exit (range 12) 16572 | -6/Garrison | Installed Relay Interface Framework 16918 | -6/Garrison | Triggered checkpoint 16992 | -6/Garrison | Triggered checkpoint 17084 | -6/Garrison | Discovered new exit (range 14) 17120 | -6/Garrison | Spotted B-75 Beast 17154 | -6/Garrison | Allies destroyed B-75 Beast 17370 | -6/Garrison | Triggered checkpoint 17641 | -6/Garrison | Lost 3 parts (2n1w) 17649 | -6/Garrison | Discovered new exit (range 10) 17660 | -6/Garrison | Triggered checkpoint 17747 | -6/Garrison | Expanded RIF knowledge: Signal Jamming 17912 | -6/Garrison | Discovered new exit (range 55) 17912 | -6/Garrison | Discovered new exit (range 78) 17912 | -6/Garrison | Discovered new exit (range 12) 17992 | -6/Garrison | Triggered checkpoint 18086 | -6/Garrison | Build established: Scavenger-Tank 18104 | -6/Garrison | Spotted Executioner 18104 | -6/Garrison | Spotted Executioner 18306 | -6/Garrison | Found Relay Coupler [Proto] 18310 | -6/Garrison | Found Relay Coupler [Proto] 18312 | -6/Garrison | Found Relay Coupler [Proto] 18315 | -6/Garrison | Found Relay Coupler [Proto] 18518 | -6/Garrison | Assimilated Executioner with formatsys_high 18520 | -6/Garrison | Allies destroyed Executioner 18527 | -6/Garrison | Found Prototype Processor 18527 | -6/Garrison | Identified Exp. Core Analyzer 18534 | -6/Garrison | Rewired Executioner 18536 | -6/Garrison | Rewired Executioner 18556 | -6/Garrison | Found Prototype Processor 18556 | -6/Garrison | Identified Exp. Targeting Computer 18564 | -6/Garrison | Found Prototype Device 18564 | -6/Garrison | Identified Adv. Kinecellerator 18690 | -6/Garrison | Triggered checkpoint 18755 | -6/Garrison | Garrison Relay disabled 18825 | -6/Garrison | Build established: Scavenger-Gunner 18901 | -6/Garrison | Garrison Relay disabled 19059 | -6/Garrison | Garrison Relay disabled 19140 | -6/Garrison | Entered Factory 19140 | -6/Factory | Accompanied by 3 allies 19375 | -6/Factory | Build established: Bothacker-Gunner 19379 | -6/Factory | Discovered new exit (range 21) 19383 | -6/Factory | Garrison activated, responded to threat 19439 | -6/Factory | Found Prototype Device 19439 | -6/Factory | Identified Active Sensor Suite 19490 | -6/Factory | First assault squad dispatched 19542 | -6/Factory | Identified exit to Garrison 19542 | -6/Factory | Entered Garrison 19542 | -6/Garrison | Accompanied by 2 allies 19659 | -6/Garrison | Lost 3 allies 19718 | -6/Garrison | Lost 3 allies 19750 | -6/Garrison | Spotted Striker 19774 | -6/Garrison | Core integrity fell below 50% 19826 | -6/Garrison | Core integrity fell below 20% 19835 | -6/Garrison | Destroyed by Striker with Plasma Lance Last Messages --------------- 19751_ H-66 Slayer destroyed. 19751_ Switching to secondary target: Striker. 19751_ Slug penetrates Wall. 19752_ Arm. Treads destroyed. 19757_ XWC |PPH&AJQF6|P#BL8PYKUWGEAN 19758_ The unstable cave ceiling collapses. 19760_ Acquired Lgt. Treads. 19761_ Acquired 70 matter. 19767_ Critical hit (Impale). 19778_ Imp. Light Armor Plating destroyed. 19783_ Acquired 69 matter. 19791_ Gatling Laser destroyed. 19791_ Imp. Light Armor Plating destroyed. 19794_ Critical hit (Impale). 19803_ Lgt. Treads destroyed. 19811_ Helical Railgun destroyed. 19811_ Flak Gun destroyed. 19812_ Critical hit (Burn: +37). 19816_ Lgt. Treads destroyed. 19835_ Critical hit (Impale). Map ----- +----------------------------------------------------+ | ??????????????????????????????????????????? | | ??????????????????????????????????????????? | | ??????????????????????????????????????????? | | ??????????????????????????????????????????? | | ??????????????????????????????????????????? | | ??????????????????????????????????????????? | | ??????????????????????????????????????????? | | ????????#######???????????????????????????? | | ????????# #???????????????????????????? | | ????????# #???????????????????????????? | | ????????# ! #?????????? ????????????????? | | ????????###==%###???????? ????????????????? | | ????????? + %%+ ????????? ????????????????? | | ????????### *=###???????? ????????????????? | | ????????# + + #???????? ????????????????? | | ????????### ###???????? ????????????????? | | ??????????# #?????????? ????????????????? | | ??????????# #?????????# #???????????????? | | ?????????##[=!#?????????# #???????????????? | | ?????????#[%*%##????????# ???????????????? | | ???? #!%! #????????# ???????????????? | | += #????????# ???????????????? | | #!???###### ##????????# #???????????????? | | ??????????# #?????????# #???????????????? | | ??????????# #?????????# #???????????????? | | ??????????#= #?????????#@#???????????????? | | ????????### [ #??#####??#K###?????????????? | | ????????# ## """"#??#g #?????????????? | | ????????# =%! "#??# +?????????????? | | ????????# %*%!## """"#??# #?????????????? | | ????????###=!%#??####???# ###?????????????? | | ??????????#%*%#?????????# #???????????????? | | ??????????#= =#?????????# #???????????????? | | ??????????#%*%#?????????# #???????????????? | | ?????###### %!########### #######?????????? | | ?????# =* = = *! #????????? | | ?????# ####% %################## #????????? | | ??????????# %=#???????????????????????????? | | ??????????# #???????????????????????????? | | ????????? ???????????????????????????? | | ????????# != ##??????????????????????????? | | ????????## %==##??????????????????????????? | | ?????????[% % ???????????????????????????? | | ???????? *%% ???????????????????????????? | | ??????? * #???????????????????????????? | | ???????########???????????????????????????? | | ??????????????????????????????????????????? | | ??????????????????????????????????????????? | | ??????????????????????????????????????????? | | ??????????????????????????????????????????? | +----------------------------------------------------+ Best States ------------- Heat Dissipation 56 Energy Generation 29 Energy Capacity 900 Matter Stores 300 Matter Capacity 300 Sight Range 23 Robot Scan Range 20 Terrain Scan Density 10 Armor Coverage 750 Resistance: KI 30 Resistance: TH 25 Core Shielding 20 Melee Speed Boost 20 Phase Shifting 5 Evasion (%) 55 Targeting Accuracy 12 Core Analysis 8 Recoil Reduction 4 Kinecelleration 50 Relay Coupler Types 2 Relay Coupler Value 59 Item Schematics ----------------- Imp. Treads | -9/Materials | Scanalyzed Imp. Medium Laser | -9/Materials | Scanalyzed Adv. Targeting Computer | -9/Storage | Hacked Arm. Treads | -8/Materials | Hacked Robot Schematics ------------------ None Fabricated ------------ Nothing Alien Tech Used ----------------- None Achievements -------------- Assimilation Complete Challenges ------------ None Game ------ Seed TerrainThermoelectricRifle Manual? 0 Play Time 02:56:14 Cumulative 66.0 hours Start 2024.04.28 @ 09:19:26 End 2024.04.29 @ 16:43:56 Sessions 3 Manual Loads 0 Difficulty Rogue Special Mode None Game No. 41 Rogue 41 Adventurer 0 Explorer 0 Win Type - Total 1 Types 1/0/0/0/0/0/0/0/0 Lore% 51 Gallery% 41 Achievement% 39 Wizard Run 0 Options --------- Layout 0 ASCII 0 Keyboard 0 Movement Mouse Keybinds 0 Fullscreen 1 Font 18/SmallcapsGlow Map View 76x50 Zoom Use 0% Tactical HUD 1 Map Filters NONE Filters NONE Steam 1 RUN: 90e0d029-8e35-4acb-8dab-bb4834b4795e